[Event "Live Chess"]
[Site "Chess.com"]
[Date "2023.05.21"]
[Round "-"]
[White "LiamBellwood"]
[Black "smoggyrabbit"]
[Result "0-1"]
[WhiteElo "2013"]
[BlackElo "1749"]
[TimeControl "300"]
[EndTime "19:47:52 PDT"]
[Termination "smoggyrabbit won on time"]

1. d4 {[%clk 0:04:59]} 1... e6 {[%clk 0:04:59.2]} 2. Nc3 {[%clk 0:04:58.6]} 2...
Nf6 {[%clk 0:04:50.9]} 3. Bf4 {[%clk 0:04:58.1]} 3... d5 {[%clk 0:04:48.5]} 4.
Nb5 {[%clk 0:04:56.9]} 4... Na6 {[%clk 0:04:42.2]} 5. a3 {[%clk 0:04:56.4]} 5...
c6 {[%clk 0:04:38]} 6. Nc3 {[%clk 0:04:54.7]} 6... Bd6 {[%clk 0:04:35.5]} 7. e3
{[%clk 0:04:53.9]} 7... Bxf4 {[%clk 0:04:34.1]} 8. exf4 {[%clk 0:04:53.8]} 8...
O-O {[%clk 0:04:30.4]} 9. Qd2 {[%clk 0:04:53.2]} 9... c5 {[%clk 0:04:27.4]} 10.
Bxa6 {[%clk 0:04:51.9]} 10... bxa6 {[%clk 0:04:25.6]} 11. dxc5 {[%clk
0:04:51.8]} 11... Qc7 {[%clk 0:04:24.1]} 12. Qd4 {[%clk 0:04:50.4]} 12... Rb8
{[%clk 0:04:19]} 13. Rb1 {[%clk 0:04:34.1]} 13... Nd7 {[%clk 0:04:16.4]} 14. Nf3
{[%clk 0:04:26.2]} 14... Qxc5 {[%clk 0:04:13.1]} 15. O-O {[%clk 0:04:21.1]}
15... Qxd4 {[%clk 0:04:11.4]} 16. Nxd4 {[%clk 0:04:21]} 16... Rb6 {[%clk
0:04:01.6]} 17. Na4 {[%clk 0:04:11]} 17... Rb7 {[%clk 0:03:55.2]} 18. c3 {[%clk
0:04:00.4]} 18... Nf6 {[%clk 0:03:53]} 19. f3 {[%clk 0:03:57.4]} 19... Bd7
{[%clk 0:03:51.5]} 20. Nc5 {[%clk 0:03:55.6]} 20... Rb6 {[%clk 0:03:39.9]} 21.
Rfe1 {[%clk 0:03:44.7]} 21... Rc8 {[%clk 0:03:38.1]} 22. Nd3 {[%clk 0:03:33.9]}
22... Bb5 {[%clk 0:03:31.1]} 23. Ne5 {[%clk 0:03:31.4]} 23... Bc4 {[%clk
0:03:21.5]} 24. a4 {[%clk 0:03:03.8]} 24... Ba2 {[%clk 0:03:18.3]} 25. a5 {[%clk
0:02:56.6]} 25... Rb7 {[%clk 0:03:13.9]} 26. f5 {[%clk 0:02:34.6]} 26... Bxb1
{[%clk 0:03:09.9]} 27. Rxb1 {[%clk 0:02:34.5]} 27... exf5 {[%clk 0:02:57.1]} 28.
Nxf5 {[%clk 0:02:29.3]} 28... Rxc3 {[%clk 0:02:42.1]} 29. Nd6 {[%clk 0:02:21.4]}
29... Rb8 {[%clk 0:02:26.6]} 30. Ndxf7 {[%clk 0:02:02]} 30... Rcb3 {[%clk
0:02:23]} 31. Rc1 {[%clk 0:01:49.8]} 31... Rxb2 {[%clk 0:02:17.6]} 32. Rc7
{[%clk 0:01:48.6]} 32... Rd2 {[%clk 0:02:09.3]} 33. h3 {[%clk 0:01:29.4]} 33...
Nh5 {[%clk 0:01:31.6]} 34. Nd6 {[%clk 0:00:43.9]} 34... Nf4 {[%clk 0:01:16.1]}
35. Nb7 {[%clk 0:00:19.4]} 35... Rxg2+ {[%clk 0:01:08.7]} 36. Kf1 {[%clk
0:00:18.7]} 36... Rb2 {[%clk 0:01:00.8]} 37. Nd6 {[%clk 0:00:12.6]} 37... Re2
{[%clk 0:00:53.7]} 38. Rc1 {[%clk 0:00:02.3]} 38... Rxe5 {[%clk 0:00:50.4]} 0-1

[Event "Live Chess"]
[Site "Chess.com"]
[Date "2023.05.21"]
[Round "-"]
[White "xx_blindpuffin_xx"]
[Black "raminguy"]
[Result "1-0"]
[WhiteElo "2186"]
[BlackElo "1955"]
[TimeControl "300"]
[EndTime "19:49:21 PDT"]
[Termination "xx_blindpuffin_xx won by resignation"]

1. d4 {[%clk 0:04:52.8]} 1... d5 {[%clk 0:04:55.9]} 2. Bf4 {[%clk 0:04:49.6]}
2... e6 {[%clk 0:04:53.9]} 3. e3 {[%clk 0:04:47.7]} 3... Bd6 {[%clk 0:04:53.5]}
4. Bg3 {[%clk 0:04:42.9]} 4... Nf6 {[%clk 0:04:52]} 5. Nf3 {[%clk 0:04:41.3]}
5... O-O {[%clk 0:04:51]} 6. Bd3 {[%clk 0:04:39.1]} 6... b6 {[%clk 0:04:50.4]}
7. Nbd2 {[%clk 0:04:37.8]} 7... c5 {[%clk 0:04:49]} 8. c3 {[%clk 0:04:36.2]}
8... Ba6 {[%clk 0:04:47.7]} 9. Qe2 {[%clk 0:04:27.8]} 9... Bxd3 {[%clk
0:04:45.6]} 10. Qxd3 {[%clk 0:04:27.6]} 10... Qc7 {[%clk 0:04:44.5]} 11. Ne5
{[%clk 0:04:26.4]} 11... Nfd7 {[%clk 0:04:40.8]} 12. f4 {[%clk 0:04:24.6]} 12...
f6 {[%clk 0:04:39.4]} 13. Nef3 {[%clk 0:04:19.6]} 13... e5 {[%clk 0:04:35.9]}
14. fxe5 {[%clk 0:04:18.1]} 14... fxe5 {[%clk 0:04:34.5]} 15. dxe5 {[%clk
0:04:16.3]} 15... Nxe5 {[%clk 0:04:07.8]} 16. Qxd5+ {[%clk 0:04:14.3]} 16... Nf7
{[%clk 0:04:06.4]} 17. Bxd6 {[%clk 0:04:03.3]} 17... Qxd6 {[%clk 0:04:05.1]} 18.
Qxd6 {[%clk 0:04:02.7]} 18... Nxd6 {[%clk 0:04:03.7]} 19. O-O {[%clk 0:04:01.6]}
19... Nc8 {[%clk 0:03:59.4]} 20. Nc4 {[%clk 0:03:54.2]} 20... Nc6 {[%clk
0:03:56.2]} 21. Rad1 {[%clk 0:03:48.6]} 21... N8e7 {[%clk 0:03:53.7]} 22. Rd7
{[%clk 0:03:45.5]} 22... Rad8 {[%clk 0:03:52.2]} 23. Rc7 {[%clk 0:03:35.9]}
23... Rc8 {[%clk 0:03:48.2]} 24. Rxc8 {[%clk 0:03:32.5]} 24... Rxc8 {[%clk
0:03:46.7]} 25. Rd1 {[%clk 0:03:31.8]} 25... Rd8 {[%clk 0:03:46]} 26. Rxd8+
{[%clk 0:03:29.7]} 26... Nxd8 {[%clk 0:03:45.9]} 27. Nfe5 {[%clk 0:03:27.5]}
27... Nec6 {[%clk 0:03:43.6]} 28. Nxc6 {[%clk 0:03:25.4]} 28... Nxc6 {[%clk
0:03:42.5]} 29. e4 {[%clk 0:03:24.4]} 29... Kf7 {[%clk 0:03:41.2]} 30. Kf2
{[%clk 0:03:22.2]} 30... Ke6 {[%clk 0:03:40]} 31. Ke3 {[%clk 0:03:21.7]} 31...
b5 {[%clk 0:03:34.8]} 32. Nd2 {[%clk 0:03:17]} 32... Ne5 {[%clk 0:03:32.3]} 33.
h3 {[%clk 0:03:14.9]} 33... h5 {[%clk 0:03:29.4]} 34. b3 {[%clk 0:03:12.6]}
34... g5 {[%clk 0:03:26.8]} 35. Nf3 {[%clk 0:03:02.8]} 35... g4 {[%clk 0:03:23]}
36. Nxe5 {[%clk 0:03:01.2]} 36... Kxe5 {[%clk 0:03:21.2]} 37. hxg4 {[%clk
0:03:00.1]} 37... hxg4 {[%clk 0:03:20.6]} 38. g3 {[%clk 0:02:56.2]} 38... a5
{[%clk 0:03:17.4]} 39. c4 {[%clk 0:02:39.2]} 39... b4 {[%clk 0:03:13.6]} 40. Kd3
{[%clk 0:02:37.4]} 40... Kf6 {[%clk 0:03:02.5]} 41. Kd2 {[%clk 0:02:35.1]} 41...
Ke5 {[%clk 0:03:01.4]} 42. Ke3 {[%clk 0:02:33.7]} 1-0

[Event "Live Chess"]
[Site "Chess.com"]
[Date "2023.05.21"]
[Round "-"]
[White "manthanit"]
[Black "GEMdzq"]
[Result "0-1"]
[WhiteElo "1060"]
[BlackElo "2280"]
[TimeControl "300"]
[EndTime "19:49:58 PDT"]
[Termination "GEMdzq won by checkmate"]

1. e4 {[%clk 0:04:58.9]} 1... d6 {[%clk 0:04:58.5]} 2. d4 {[%clk 0:04:58.3]}
2... Nf6 {[%clk 0:04:58]} 3. Bd3 {[%clk 0:04:56.1]} 3... g6 {[%clk 0:04:57.3]}
4. Be3 {[%clk 0:04:55.6]} 4... Bg7 {[%clk 0:04:56.7]} 5. Nf3 {[%clk 0:04:55]}
5... Ng4 {[%clk 0:04:55.1]} 6. Nc3 {[%clk 0:04:53.5]} 6... Nxe3 {[%clk
0:04:53.5]} 7. fxe3 {[%clk 0:04:52.3]} 7... Nd7 {[%clk 0:04:51.8]} 8. O-O {[%clk
0:04:51.6]} 8... c5 {[%clk 0:04:51]} 9. dxc5 {[%clk 0:04:49.9]} 9... Nxc5 {[%clk
0:04:50.9]} 10. Bc4 {[%clk 0:04:46.9]} 10... O-O {[%clk 0:04:48.9]} 11. Ng5
{[%clk 0:04:45.4]} 11... e6 {[%clk 0:04:47.3]} 12. b4 {[%clk 0:04:39.6]} 12...
Qxg5 {[%clk 0:04:43.3]} 13. bxc5 {[%clk 0:04:32.5]} 13... Qxe3+ {[%clk
0:04:33.6]} 14. Kh1 {[%clk 0:04:29.8]} 14... Qxc3 {[%clk 0:04:32.8]} 15. Rb1
{[%clk 0:04:28.9]} 15... Qxc4 {[%clk 0:04:31]} 16. Qxd6 {[%clk 0:04:19.8]} 16...
Qxe4 {[%clk 0:04:27.7]} 17. Rbc1 {[%clk 0:04:10.5]} 17... Qe5 {[%clk 0:04:23.6]}
18. Qe7 {[%clk 0:04:02.8]} 18... b6 {[%clk 0:04:14.4]} 19. cxb6 {[%clk
0:04:00.7]} 19... axb6 {[%clk 0:04:13.1]} 20. Rf3 {[%clk 0:03:51.9]} 20... Rxa2
{[%clk 0:04:05.7]} 21. Rcf1 {[%clk 0:03:50]} 21... Ra1 {[%clk 0:04:04.8]} 22.
Kg1 {[%clk 0:03:38.7]} 22... Rxf1+ {[%clk 0:04:03.6]} 23. Kxf1 {[%clk
0:03:37.6]} 23... Ba6+ {[%clk 0:04:02.6]} 24. Kf2 {[%clk 0:03:36]} 24... Qe2+
{[%clk 0:03:59.4]} 25. Kg3 {[%clk 0:03:35]} 25... Be5+ {[%clk 0:03:58.5]} 26.
Kh3 {[%clk 0:03:34.1]} 26... Qe4 {[%clk 0:03:40.5]} 27. c3 {[%clk 0:03:29.8]}
27... Be2 {[%clk 0:03:37.4]} 28. Rxf7 {[%clk 0:03:22.2]} 28... Qg4# {[%clk
0:03:35.8]} 0-1

[Event "Live Chess"]
[Site "Chess.com"]
[Date "2023.05.21"]
[Round "-"]
[White "Long1968"]
[Black "OceanFloater"]
[Result "0-1"]
[WhiteElo "1052"]
[BlackElo "1026"]
[TimeControl "300"]
[EndTime "19:50:03 PDT"]
[Termination "OceanFloater won on time"]

1. e4 {[%clk 0:04:56.8]} 1... c6 {[%clk 0:04:59.3]} 2. d4 {[%clk 0:04:55]} 2...
d5 {[%clk 0:04:58.9]} 3. e5 {[%clk 0:04:52.8]} 3... Bf5 {[%clk 0:04:56.5]} 4.
Bd3 {[%clk 0:04:51.3]} 4... Bxd3 {[%clk 0:04:54.5]} 5. Qxd3 {[%clk 0:04:49]}
5... e6 {[%clk 0:04:54.2]} 6. f4 {[%clk 0:04:41.5]} 6... c5 {[%clk 0:04:52.4]}
7. Be3 {[%clk 0:04:37.5]} 7... c4 {[%clk 0:04:49.7]} 8. Qd2 {[%clk 0:04:31.1]}
8... Nc6 {[%clk 0:04:47.7]} 9. c3 {[%clk 0:04:27.3]} 9... b5 {[%clk 0:04:45.9]}
10. a3 {[%clk 0:04:23.6]} 10... Nge7 {[%clk 0:04:44.3]} 11. Nf3 {[%clk
0:04:17.8]} 11... Nf5 {[%clk 0:04:42.3]} 12. O-O {[%clk 0:04:15]} 12... Nxe3
{[%clk 0:04:40.7]} 13. Qxe3 {[%clk 0:04:12.7]} 13... Be7 {[%clk 0:04:33.6]} 14.
Nbd2 {[%clk 0:04:05.8]} 14... a5 {[%clk 0:04:31.8]} 15. g3 {[%clk 0:03:50.3]}
15... O-O {[%clk 0:04:29.5]} 16. Rf2 {[%clk 0:03:42.3]} 16... b4 {[%clk
0:04:26.5]} 17. a4 {[%clk 0:03:12.3]} 17... bxc3 {[%clk 0:04:25.3]} 18. bxc3
{[%clk 0:03:05.4]} 18... Rb8 {[%clk 0:04:23.7]} 19. Ne1 {[%clk 0:02:08.8]} 19...
Qd7 {[%clk 0:04:17.3]} 20. Qf3 {[%clk 0:01:44.9]} 20... Rb2 {[%clk 0:04:11.5]}
21. Nf1 {[%clk 0:01:37]} 21... Rxf2 {[%clk 0:04:09.5]} 22. Qxf2 {[%clk
0:01:30.2]} 22... Rb8 {[%clk 0:04:08.8]} 23. Ra2 {[%clk 0:01:21.1]} 23... f6
{[%clk 0:04:02.5]} 24. Ne3 {[%clk 0:01:09.3]} 24... f5 {[%clk 0:03:59.7]} 25.
Rb2 {[%clk 0:00:59]} 25... Ba3 {[%clk 0:03:42]} 26. Rxb8+ {[%clk 0:00:49.8]}
26... Nxb8 {[%clk 0:03:39.2]} 27. Qa2 {[%clk 0:00:45]} 27... Be7 {[%clk
0:03:21.2]} 28. Qb2 {[%clk 0:00:30.5]} 28... Qc6 {[%clk 0:02:52.9]} 29. Qxb8+
{[%clk 0:00:25.1]} 29... Bf8 {[%clk 0:02:50.6]} 30. Qb5 {[%clk 0:00:19.4]} 30...
Qc7 {[%clk 0:02:43.5]} 31. N1c2 {[%clk 0:00:12.3]} 31... h5 {[%clk 0:02:38.4]}
32. Kf2 {[%clk 0:00:08.1]} 32... Kh7 {[%clk 0:02:36.9]} 0-1

[Event "Live Chess"]
[Site "Chess.com"]
[Date "2023.05.21"]
[Round "-"]
[White "worldchessleaguelive"]
[Black "chessfiction"]
[Result "0-1"]
[WhiteElo "1378"]
[BlackElo "2354"]
[TimeControl "300"]
[EndTime "19:50:30 PDT"]
[Termination "chessfiction won by resignation"]

1. d4 {[%clk 0:04:58.7]} 1... e5 {[%clk 0:04:59.6]} 2. dxe5 {[%clk 0:04:57.3]}
2... f6 {[%clk 0:04:59.5]} 3. exf6 {[%clk 0:04:56]} 3... Nxf6 {[%clk 0:04:59.4]}
4. Nf3 {[%clk 0:04:54.5]} 4... Bc5 {[%clk 0:04:59.3]} 5. e3 {[%clk 0:04:53.5]}
5... O-O {[%clk 0:04:57.9]} 6. Be2 {[%clk 0:04:52.5]} 6... d5 {[%clk 0:04:57.3]}
7. Nc3 {[%clk 0:04:45.9]} 7... Bg4 {[%clk 0:04:56.6]} 8. Qd3 {[%clk 0:04:39.2]}
8... Nc6 {[%clk 0:04:55.6]} 9. h3 {[%clk 0:04:35.1]} 9... Nb4 {[%clk 0:04:53.8]}
10. Qd1 {[%clk 0:04:28.1]} 10... Bf5 {[%clk 0:04:52.9]} 11. Bd3 {[%clk
0:04:23.6]} 11... Nxd3+ {[%clk 0:04:47.3]} 12. cxd3 {[%clk 0:04:21.6]} 12... Qe7
{[%clk 0:04:45.7]} 13. O-O {[%clk 0:04:19.8]} 13... Nh5 {[%clk 0:04:42.3]} 14.
Nd4 {[%clk 0:04:10.8]} 14... Bxd4 {[%clk 0:04:30.3]} 15. Qxh5 {[%clk 0:04:06.7]}
15... Bxc3 {[%clk 0:04:20.6]} 16. bxc3 {[%clk 0:03:59.8]} 16... Bxd3 {[%clk
0:04:19.9]} 17. Rd1 {[%clk 0:03:56.7]} 17... Bg6 {[%clk 0:04:09.1]} 18. Qxd5+
{[%clk 0:03:48.3]} 18... Kh8 {[%clk 0:04:08.1]} 19. Qxb7 {[%clk 0:03:29.4]}
19... Qf6 {[%clk 0:04:03.6]} 20. Rf1 {[%clk 0:03:14.7]} 20... Bd3 {[%clk
0:03:55.6]} 21. Ba3 {[%clk 0:03:05.8]} 21... Ba6 {[%clk 0:03:45.1]} 22. Qxc7
{[%clk 0:02:54.6]} 22... Rfc8 {[%clk 0:03:40.6]} 23. Qe7 {[%clk 0:02:22.3]}
23... Qxe7 {[%clk 0:03:37]} 24. Bxe7 {[%clk 0:02:20.2]} 24... Bxf1 {[%clk
0:03:36.9]} 25. Kxf1 {[%clk 0:02:18.2]} 25... Rxc3 {[%clk 0:03:36.8]} 26. Ke2
{[%clk 0:02:07.8]} 26... Rc2+ {[%clk 0:03:34.6]} 27. Kf3 {[%clk 0:02:06]} 27...
Re8 {[%clk 0:03:32.8]} 28. Bg5 {[%clk 0:02:03.4]} 28... Rf8+ {[%clk 0:03:31.9]}
29. Kg3 {[%clk 0:01:54.9]} 29... Rfxf2 {[%clk 0:03:30.8]} 30. Bf4 {[%clk
0:01:46.8]} 30... Rxg2+ {[%clk 0:03:19.7]} 31. Kf3 {[%clk 0:01:41.2]} 31... Rxa2
{[%clk 0:03:14.5]} 32. Rd1 {[%clk 0:01:33.8]} 32... Kg8 {[%clk 0:03:07.2]} 33.
Rd8+ {[%clk 0:01:27.7]} 33... Kf7 {[%clk 0:03:06.5]} 34. Rh8 {[%clk 0:01:23]}
34... h6 {[%clk 0:03:04.7]} 35. Ra8 {[%clk 0:01:16.8]} 35... Rgf2+ {[%clk
0:03:01.1]} 36. Kg3 {[%clk 0:01:15.2]} 36... g5 {[%clk 0:02:58.8]} 37. Bd6
{[%clk 0:01:08.5]} 37... h5 {[%clk 0:02:54.5]} 38. Rf8+ {[%clk 0:01:03.4]} 38...
Ke6 {[%clk 0:02:52.7]} 39. Rxf2 {[%clk 0:00:56.5]} 39... Rxf2 {[%clk 0:02:51.5]}
40. Kxf2 {[%clk 0:00:53.3]} 40... Kxd6 {[%clk 0:02:49.6]} 41. Ke2 {[%clk
0:00:48.2]} 41... Ke5 {[%clk 0:02:47.4]} 42. Kd3 {[%clk 0:00:42.9]} 42... g4
{[%clk 0:02:46]} 43. hxg4 {[%clk 0:00:41.7]} 43... hxg4 {[%clk 0:02:45.9]} 44.
Ke2 {[%clk 0:00:40.7]} 44... g3 {[%clk 0:02:45.8]} 45. Kf3 {[%clk 0:00:39.6]}
45... a5 {[%clk 0:02:44.9]} 46. Kxg3 {[%clk 0:00:38.2]} 46... a4 {[%clk
0:02:44.8]} 47. Kf2 {[%clk 0:00:37.5]} 47... a3 {[%clk 0:02:44.7]} 48. Ke2
{[%clk 0:00:37.1]} 48... a2 {[%clk 0:02:44.6]} 49. Kd2 {[%clk 0:00:36.6]} 49...
a1=Q {[%clk 0:02:44.5]} 0-1

[Event "Live Chess"]
[Site "Chess.com"]
[Date "2023.05.21"]
[Round "-"]
[White "LutherSullivan"]
[Black "CheckThis4"]
[Result "1-0"]
[WhiteElo "2172"]
[BlackElo "2491"]
[TimeControl "300"]
[EndTime "19:50:35 PDT"]
[Termination "LutherSullivan won by checkmate"]

1. d4 {[%clk 0:04:56]} 1... Nf6 {[%clk 0:04:58.4]} 2. Nf3 {[%clk 0:04:53.1]}
2... g6 {[%clk 0:04:55.6]} 3. Nbd2 {[%clk 0:04:51.9]} 3... Bg7 {[%clk
0:04:55.1]} 4. e4 {[%clk 0:04:51.1]} 4... d6 {[%clk 0:04:54.4]} 5. Bb5+ {[%clk
0:04:48.5]} 5... c6 {[%clk 0:04:52.8]} 6. Bd3 {[%clk 0:04:48.1]} 6... O-O {[%clk
0:04:52.3]} 7. O-O {[%clk 0:04:46.4]} 7... Nbd7 {[%clk 0:04:51.8]} 8. Re1 {[%clk
0:04:44.2]} 8... e5 {[%clk 0:04:51.3]} 9. dxe5 {[%clk 0:04:37.4]} 9... dxe5
{[%clk 0:04:50.2]} 10. b3 {[%clk 0:04:35.3]} 10... Nh5 {[%clk 0:04:48.8]} 11.
Ba3 {[%clk 0:04:30]} 11... Re8 {[%clk 0:04:47.5]} 12. Nc4 {[%clk 0:04:26.6]}
12... Nf4 {[%clk 0:04:43.3]} 13. Bf1 {[%clk 0:04:24.4]} 13... Qf6 {[%clk
0:04:32.3]} 14. Nd6 {[%clk 0:03:28]} 14... Rd8 {[%clk 0:04:30.4]} 15. Bc4 {[%clk
0:03:23]} 15... Ne6 {[%clk 0:04:25.2]} 16. Bxe6 {[%clk 0:02:52.9]} 16... fxe6
{[%clk 0:04:20.2]} 17. Qd2 {[%clk 0:02:40.7]} 17... Bf8 {[%clk 0:04:14]} 18.
Rad1 {[%clk 0:02:36.4]} 18... Nb6 {[%clk 0:04:09.7]} 19. Qc3 {[%clk 0:02:31.1]}
19... Bg7 {[%clk 0:03:55]} 20. Bc1 {[%clk 0:02:13.2]} 20... h6 {[%clk
0:03:50.4]} 21. Bb2 {[%clk 0:02:01.3]} 21... Qe7 {[%clk 0:03:40]} 22. Nc4 {[%clk
0:01:55.2]} 22... Bd7 {[%clk 0:03:25.8]} 23. Ncxe5 {[%clk 0:01:48]} 23... Be8
{[%clk 0:03:21.9]} 24. Qa5 {[%clk 0:01:43.6]} 24... Nd7 {[%clk 0:03:16.1]} 25.
Qc7 {[%clk 0:01:32.5]} 25... Bf6 {[%clk 0:02:46.9]} 26. Kf1 {[%clk 0:00:58.1]}
26... Qg7 {[%clk 0:02:29.1]} 27. Qxb7 {[%clk 0:00:48.7]} 27... Rdb8 {[%clk
0:02:06.5]} 28. Qc7 {[%clk 0:00:47.3]} 28... Rc8 {[%clk 0:02:05.3]} 29. Qd6
{[%clk 0:00:46]} 29... Nxe5 {[%clk 0:02:02]} 30. Bxe5 {[%clk 0:00:42.6]} 30...
Rd8 {[%clk 0:02:00.3]} 31. Qxe6+ {[%clk 0:00:39.6]} 31... Bf7 {[%clk 0:01:59.1]}
32. Qxf6 {[%clk 0:00:37.5]} 32... Qxf6 {[%clk 0:01:53.1]} 33. Bxf6 {[%clk
0:00:37.1]} 33... Re8 {[%clk 0:01:53]} 34. e5 {[%clk 0:00:34.8]} 34... Bd5
{[%clk 0:01:50.7]} 35. c4 {[%clk 0:00:32.7]} 35... Be6 {[%clk 0:01:49.6]} 36.
Rd6 {[%clk 0:00:31.3]} 36... Rac8 {[%clk 0:01:48.2]} 37. Red1 {[%clk 0:00:30.8]}
37... g5 {[%clk 0:01:45.1]} 38. Nd4 {[%clk 0:00:29.1]} 38... Bf7 {[%clk
0:01:44]} 39. Nxc6 {[%clk 0:00:28]} 39... Kh7 {[%clk 0:01:40]} 40. Ne7 {[%clk
0:00:26.9]} 40... Rc7 {[%clk 0:01:36.1]} 41. Rd8 {[%clk 0:00:20.3]} 41... Rc5
{[%clk 0:01:16]} 42. Rxe8 {[%clk 0:00:19]} 42... Bxe8 {[%clk 0:01:15.9]} 43. Rd8
{[%clk 0:00:18]} 43... Rc7 {[%clk 0:00:54.1]} 44. Rxe8 {[%clk 0:00:17]} 44...
Rxe7 {[%clk 0:00:54]} 45. Rxe7+ {[%clk 0:00:16.6]} 45... Kg6 {[%clk 0:00:53.6]}
46. Rxa7 {[%clk 0:00:16.1]} 46... h5 {[%clk 0:00:52.7]} 47. f3 {[%clk
0:00:15.8]} 47... g4 {[%clk 0:00:51.9]} 48. Kf2 {[%clk 0:00:15.5]} 48... Kf5
{[%clk 0:00:50.9]} 49. fxg4+ {[%clk 0:00:14.3]} 49... Ke6 {[%clk 0:00:50.8]} 50.
g3 {[%clk 0:00:13.9]} 50... hxg4 {[%clk 0:00:49.8]} 51. Ra6+ {[%clk 0:00:13.7]}
51... Kf5 {[%clk 0:00:49.7]} 52. Ke3 {[%clk 0:00:12.6]} 52... Kg6 {[%clk
0:00:48.2]} 53. Kf4 {[%clk 0:00:12.2]} 53... Kf7 {[%clk 0:00:48.1]} 54. Kf5
{[%clk 0:00:11.4]} 54... Ke8 {[%clk 0:00:48]} 55. Ra7 {[%clk 0:00:10.5]} 55...
Kf8 {[%clk 0:00:46.6]} 56. e6 {[%clk 0:00:10.2]} 56... Ke8 {[%clk 0:00:46.5]}
57. Ra8# {[%clk 0:00:09.5]} 1-0

[Event "Live Chess"]
[Site "Chess.com"]
[Date "2023.05.21"]
[Round "-"]
[White "alanmike75"]
[Black "ramses-IIG"]
[Result "1-0"]
[WhiteElo "1607"]
[BlackElo "870"]
[TimeControl "300"]
[EndTime "19:51:12 PDT"]
[Termination "alanmike75 won by resignation"]

1. e4 {[%clk 0:04:56.8]} 1... d5 {[%clk 0:04:58.4]} 2. exd5 {[%clk 0:04:55.5]}
2... Qxd5 {[%clk 0:04:58.3]} 3. Nc3 {[%clk 0:04:54.1]} 3... Qe6+ {[%clk
0:04:58.2]} 4. Qe2 {[%clk 0:04:50.8]} 4... Qg6 {[%clk 0:04:58.1]} 5. d3 {[%clk
0:04:46]} 5... c6 {[%clk 0:04:56.4]} 6. Nf3 {[%clk 0:04:42.2]} 6... f6 {[%clk
0:04:55.6]} 7. g3 {[%clk 0:04:35.5]} 7... e6 {[%clk 0:04:54.2]} 8. Bg2 {[%clk
0:04:34.4]} 8... e5 {[%clk 0:04:53.4]} 9. O-O {[%clk 0:04:32.9]} 9... Nd7 {[%clk
0:04:51.9]} 10. Nh4 {[%clk 0:04:28.9]} 10... Qf7 {[%clk 0:04:49.8]} 11. f4
{[%clk 0:04:19.8]} 11... g6 {[%clk 0:04:45.8]} 12. f5 {[%clk 0:04:15.5]} 12...
Bb4 {[%clk 0:04:43.4]} 13. Bd2 {[%clk 0:04:11.2]} 13... Ne7 {[%clk 0:04:40.3]}
14. g4 {[%clk 0:04:05]} 14... g5 {[%clk 0:04:30]} 15. Nf3 {[%clk 0:04:02.6]}
15... h5 {[%clk 0:04:24.8]} 16. h3 {[%clk 0:04:00.6]} 16... hxg4 {[%clk
0:04:22.1]} 17. hxg4 {[%clk 0:03:59.3]} 17... Qh7 {[%clk 0:04:15.9]} 18. Ne4
{[%clk 0:03:51.4]} 18... b6 {[%clk 0:04:05.8]} 19. Bxb4 {[%clk 0:03:48.9]} 19...
Bb7 {[%clk 0:04:02.8]} 20. Nd6+ {[%clk 0:03:46.8]} 20... Kd8 {[%clk 0:04:00.4]}
21. Nxb7+ {[%clk 0:03:45.4]} 21... Kc7 {[%clk 0:03:59.1]} 22. Nd6 {[%clk
0:03:43.9]} 22... Nd5 {[%clk 0:03:55.6]} 23. Qd2 {[%clk 0:03:26.7]} 23... Nf4
{[%clk 0:03:53.2]} 24. Ne4 {[%clk 0:03:20.7]} 24... Nxg2 {[%clk 0:03:49.5]} 25.
Qxg2 {[%clk 0:03:18.7]} 25... Nc5 {[%clk 0:03:40.4]} 26. Bxc5 {[%clk 0:03:13.2]}
26... bxc5 {[%clk 0:03:40.3]} 27. Nxc5 {[%clk 0:03:11.9]} 27... Qg7 {[%clk
0:03:34.4]} 28. Ne6+ {[%clk 0:03:10.3]} 1-0

[Event "Live Chess"]
[Site "Chess.com"]
[Date "2023.05.21"]
[Round "-"]
[White "grillage"]
[Black "therealab0ne"]
[Result "1-0"]
[WhiteElo "1809"]
[BlackElo "717"]
[TimeControl "300"]
[EndTime "19:51:16 PDT"]
[Termination "grillage won by resignation"]

1. d4 {[%clk 0:04:59.1]} 1... d5 {[%clk 0:04:56.1]} 2. Nc3 {[%clk 0:04:57.9]}
2... e6 {[%clk 0:04:52.6]} 3. Bf4 {[%clk 0:04:57]} 3... Nf6 {[%clk 0:04:47.1]}
4. e3 {[%clk 0:04:55.2]} 4... Bd6 {[%clk 0:04:40.8]} 5. Nf3 {[%clk 0:04:36.4]}
5... O-O {[%clk 0:04:28.8]} 6. Ne5 {[%clk 0:04:34.9]} 6... c5 {[%clk 0:04:24.4]}
7. Be2 {[%clk 0:04:24.9]} 7... Nh5 {[%clk 0:04:12.2]} 8. Bxh5 {[%clk 0:04:18.9]}
8... Nc6 {[%clk 0:03:57]} 9. Nxc6 {[%clk 0:04:10.4]} 9... bxc6 {[%clk
0:03:54.5]} 10. Bxd6 {[%clk 0:04:09.6]} 10... Qxd6 {[%clk 0:03:53.4]} 11. O-O
{[%clk 0:04:05.6]} 11... cxd4 {[%clk 0:03:52.2]} 12. exd4 {[%clk 0:04:03.9]}
12... c5 {[%clk 0:03:50.4]} 13. dxc5 {[%clk 0:03:56.5]} 13... Qxc5 {[%clk
0:03:49.1]} 14. Bf3 {[%clk 0:03:47]} 14... Bb7 {[%clk 0:03:42.9]} 15. Qd2 {[%clk
0:03:43.4]} 15... Rad8 {[%clk 0:03:41.1]} 16. Rad1 {[%clk 0:03:41.5]} 16... Bc6
{[%clk 0:03:23.5]} 17. Qd4 {[%clk 0:03:36.2]} 17... Qxd4 {[%clk 0:03:19.4]} 18.
Rxd4 {[%clk 0:03:35]} 18... Rb8 {[%clk 0:03:15.8]} 19. b3 {[%clk 0:03:31.3]}
19... Rfe8 {[%clk 0:03:11.1]} 20. Rd2 {[%clk 0:03:28]} 20... e5 {[%clk 0:03:03]}
21. Bxd5 {[%clk 0:03:25.8]} 21... Bxd5 {[%clk 0:03:01.6]} 22. Rxd5 {[%clk
0:03:22.5]} 22... e4 {[%clk 0:02:56.1]} 23. Re1 {[%clk 0:03:20.9]} 23... Rbd8
{[%clk 0:02:50.4]} 24. Rxd8 {[%clk 0:03:18.3]} 24... Rxd8 {[%clk 0:02:49.6]} 25.
Nxe4 {[%clk 0:03:16.5]} 25... g6 {[%clk 0:02:43.7]} 26. f3 {[%clk 0:03:15.1]}
26... Rd4 {[%clk 0:02:42.2]} 27. Kf2 {[%clk 0:03:11.7]} 27... Kf8 {[%clk
0:02:40.7]} 28. Ke3 {[%clk 0:03:10.4]} 28... Rd7 {[%clk 0:02:38.4]} 29. Re2
{[%clk 0:03:08.9]} 29... Ke7 {[%clk 0:02:37.3]} 30. Rd2 {[%clk 0:03:07.9]} 1-0

[Event "Live Chess"]
[Site "Chess.com"]
[Date "2023.05.21"]
[Round "-"]
[White "raminguy"]
[Black "garyjc"]
[Result "1-0"]
[WhiteElo "1955"]
[BlackElo "1048"]
[TimeControl "300"]
[EndTime "19:51:27 PDT"]
[Termination "raminguy won by resignation"]

1. d4 {[%clk 0:04:59.1]} 1... Nf6 {[%clk 0:04:57.1]} 2. Nc3 {[%clk 0:04:58.4]}
2... g6 {[%clk 0:04:55.6]} 3. e4 {[%clk 0:04:57.3]} 3... Bg7 {[%clk 0:04:53]} 4.
Bf4 {[%clk 0:04:56.8]} 4... O-O {[%clk 0:04:50.6]} 5. Qd2 {[%clk 0:04:56.4]}
5... d6 {[%clk 0:04:38.7]} 6. Bh6 {[%clk 0:04:53.4]} 6... Bxh6 {[%clk
0:04:18.6]} 7. Qxh6 {[%clk 0:04:44.5]} 7... Ng4 {[%clk 0:04:17.9]} 8. Qh4 {[%clk
0:04:31.7]} 8... e5 {[%clk 0:04:02.7]} 9. Qxd8 {[%clk 0:04:29.4]} 9... Re8
{[%clk 0:04:00.7]} 10. Qxe8+ {[%clk 0:04:27.3]} 10... Kg7 {[%clk 0:03:57]} 11.
Qxc8 {[%clk 0:04:21.5]} 11... Nf6 {[%clk 0:03:47.9]} 12. Qxb7 {[%clk 0:04:20.2]}
1-0